fUSD/lending_fUSD_20250602
["ID","MTS","AMOUNT","RATE_DAILY","PERIOD"]
[363784268,1748869868035,-420.0,0.00020273,2]
[363784269,1748869868044,-420.0,0.00020273,2]
[363784270,1748869868053,-420.0,0.00020273,2]
[363784271,1748869868063,-8279.57,0.00020273,2]
[363784272,1748869868072,-420.0,0.00020273,2]
[363784273,1748869868082,-420.0,0.00020273,2]
[363784274,1748869868092,-420.0,0.00020273,2]
[363784275,1748869868101,-420.0,0.00020273,2]
[363784276,1748869868111,-489.65,0.00020273,2]
[363784277,1748869868120,-420.0,0.00020273,2]
[363784278,1748869868131,-420.0,0.00020273,2]
[363784279,1748869868141,-420.0,0.00020273,2]
[363784280,1748869868150,-420.0,0.00020273,2]
[363784281,1748869868160,-182.14230509,0.00020273,2]
[363784282,1748869868170,-420.0,0.00020273,2]
[363784283,1748869868180,-618.96,0.00020273,2]
[363784284,1748869868190,-420.0,0.00020273,2]
[363784285,1748869868200,-420.0,0.00020273,2]
[363784286,1748869868211,-420.0,0.00020273,2]
[363784287,1748869868221,-544.11,0.00020273,2]
[363784288,1748869868231,-420.0,0.00020273,2]
[363784289,1748869868241,-635.69,0.00020273,2]
[363784290,1748869868252,-420.0,0.00020273,2]
[363784291,1748869868263,-533.13,0.00020273,2]
[363784292,1748869868272,-420.0,0.00020273,2]
[363784293,1748869868282,-150.0,0.00020277,2]
[363784294,1748869868292,-196.31159808,0.00020291,2]
[363784295,1748869868301,-1200.0,0.000203,3]
[363784296,1748869868311,-250.0,0.000203,2]
[363784297,1748869868324,-250.0,0.000203,2]
[363784298,1748869868335,-250.0,0.000203,2]
[363784299,1748869868345,-345.5,0.000203,2]
[363784300,1748869868355,-242.830981,0.00020302,2]
[363784301,1748869868365,-151.0,0.00020302,2]
[363784302,1748869868375,-150.0,0.00020368,2]
[363784303,1748869868385,-1000.0,0.00020368,2]
[363784304,1748869868395,-151.0,0.00020384,2]
[363784305,1748869868404,-1839.9998,0.00020398,2]
[363784306,1748869868413,-300.0,0.00020398,2]
[363784307,1748869868424,-500.0,0.00020399,2]
[363784308,1748869868435,-500.0,0.00020399,2]
[363784309,1748869868445,-500.0,0.00020399,2]
[363784310,1748869868455,-500.0,0.00020399,2]
[363784311,1748869868467,-500.0,0.00020399,2]
[363784312,1748869868477,-500.0,0.00020399,2]
[363784313,1748869868487,-500.0,0.00020399,2]
[363784314,1748869868496,-500.0,0.00020399,2]
[363784315,1748869868506,-500.0,0.00020399,2]
[363784316,1748869868515,-500.0,0.00020399,2]
[363784317,1748869868525,-500.0,0.00020399,2]
[363784318,1748869868535,-500.0,0.00020399,2]
[363784319,1748869868545,-500.0,0.00020399,2]
[363784320,1748869868555,-500.0,0.00020399,2]
[363784321,1748869868565,-500.0,0.00020399,2]
[363784322,1748869868575,-500.0,0.00020399,2]
[363784323,1748869868585,-500.0,0.00020399,2]
[363784324,1748869868595,-500.0,0.00020399,2]
[363784325,1748869868604,-500.0,0.00020399,2]
[363784326,1748869868614,-500.0,0.00020399,2]
[363784327,1748869868623,-500.0,0.00020399,2]
[363784328,1748869868632,-500.0,0.00020399,2]
[363784329,1748869868641,-500.0,0.00020399,2]
[363784330,1748869868649,-500.0,0.00020399,2]
[363784331,1748869868657,-500.0,0.00020399,2]
[363784332,1748869868666,-500.0,0.00020399,2]
[363784333,1748869868675,-500.0,0.00020399,2]
[363784334,1748869868684,-500.0,0.00020399,2]
[363784335,1748869868693,-500.0,0.00020399,2]
[363784336,1748869868703,-500.0,0.00020399,2]
[363784337,1748869868714,-500.0,0.00020399,2]
[363784338,1748869868724,-500.0,0.00020399,2]
[363784339,1748869868734,-500.0,0.00020399,2]
[363784340,1748869868743,-500.0,0.00020399,2]
[363784341,1748869868752,-500.0,0.00020399,2]
[363784342,1748869868762,-500.0,0.00020399,2]
[363784343,1748869868772,-500.0,0.00020399,2]
[363784344,1748869868781,-500.0,0.00020399,2]
[363784345,1748869868791,-500.0,0.00020399,2]
[363784346,1748869868801,-500.0,0.00020399,2]
[363784347,1748869868811,-500.0,0.00020399,2]
[363784348,1748869868820,-500.0,0.00020399,2]
[363784349,1748869868830,-500.0,0.00020399,2]
[363784350,1748869868839,-500.0,0.00020399,2]
[363784351,1748869868848,-500.0,0.00020399,2]
[363784352,1748869868858,-500.0,0.00020399,2]
[363784353,1748869868867,-500.0,0.00020399,2]
[363784354,1748869868877,-500.0,0.00020399,2]
[363784355,1748869868886,-500.0,0.00020399,2]
[363784356,1748869868897,-500.0,0.00020399,2]
[363784357,1748869868907,-500.0,0.00020399,2]
[363784358,1748869868917,-500.0,0.00020399,2]
[363784359,1748869868927,-500.0,0.00020399,2]
[363784360,1748869868936,-500.0,0.00020399,2]
[363784361,1748869868946,-500.0,0.00020399,2]
[363784362,1748869868955,-500.0,0.00020399,2]
[363784363,1748869868965,-500.0,0.00020399,2]
[363784364,1748869868973,-500.0,0.00020399,2]
[363784365,1748869868982,-500.0,0.00020399,2]
[363784366,1748869868992,-500.0,0.00020399,2]
[363784367,1748869869000,-500.0,0.00020399,2]
[363784368,1748869869009,-500.0,0.00020399,2]
[363784369,1748869869020,-500.0,0.00020399,2]
[363784370,1748869869029,-500.0,0.00020399,2]
[363784371,1748869869037,-500.0,0.00020399,2]
[363784372,1748869869046,-500.0,0.00020399,2]
[363784373,1748869869055,-500.0,0.00020399,2]
[363784374,1748869869064,-500.0,0.00020399,2]
[363784375,1748869869072,-500.0,0.00020399,2]
[363784376,1748869869081,-500.0,0.00020399,2]
[363784377,1748869869090,-500.0,0.00020399,2]
[363784378,1748869869099,-500.0,0.00020399,2]
[363784379,1748869869109,-500.0,0.00020399,2]
[363784380,1748869869119,-500.0,0.00020399,2]
[363784381,1748869869129,-500.0,0.00020399,2]
[363784382,1748869869139,-500.0,0.00020399,2]
[363784383,1748869869148,-500.0,0.00020399,2]
[363784384,1748869869157,-500.0,0.00020399,2]
[363784385,1748869869166,-500.0,0.00020399,2]
[363784386,1748869869322,-500.0,0.00020399,2]
[363784387,1748869869333,-500.0,0.00020399,2]
[363784388,1748869869344,-500.0,0.00020399,2]
[363784389,1748869869354,-500.0,0.00020399,2]
[363784390,1748869869364,-500.0,0.00020399,2]
[363784391,1748869869374,-500.0,0.00020399,2]
[363784392,1748869869384,-500.0,0.00020399,2]
[363784393,1748869869394,-500.0,0.00020399,2]
[363784394,1748869869404,-500.0,0.00020399,2]
[363784395,1748869869413,-500.0,0.00020399,2]
[363784396,1748869869423,-500.0,0.00020399,2]
[363784397,1748869869432,-500.0,0.00020399,2]
[363784398,1748869869442,-500.0,0.00020399,2]
[363784399,1748869869452,-500.0,0.00020399,2]
[363784400,1748869869462,-500.0,0.00020399,2]
[363784401,1748869869472,-500.0,0.00020399,2]
[363784402,1748869869482,-500.0,0.00020399,2]
[363784403,1748869869492,-500.0,0.00020399,2]
[363784404,1748869869503,-500.0,0.00020399,2]
[363784405,1748869869513,-500.0,0.00020399,2]
[363784406,1748869869524,-500.0,0.00020399,2]
[363784407,1748869869534,-500.0,0.00020399,2]
[363784408,1748869869543,-500.0,0.00020399,2]
[363784409,1748869869553,-500.0,0.00020399,2]
[363784410,1748869869562,-500.0,0.00020399,2]
[363784411,1748869869572,-500.0,0.00020399,2]
[363784412,1748869869582,-500.0,0.00020399,2]
[363784413,1748869869591,-500.0,0.00020399,2]
[363784414,1748869869601,-500.0,0.00020399,2]
[363784415,1748869869610,-500.0,0.00020399,2]
[363784416,1748869869620,-969.0,0.00020399,2]
[363784417,1748869869630,-200.0,0.00020402,2]
[363784418,1748869869640,-200.0,0.00020402,2]
[363784419,1748869869650,-300.0,0.00020409,2]
[363784420,1748869869660,-300.0,0.00020409,2]
[363784421,1748869869669,-300.0,0.00020409,2]
[363784422,1748869869679,-151.0,0.0002041,2]
[363784423,1748869869689,-151.0,0.0002041,2]
[363784424,1748869869699,-151.0,0.0002041,2]
[363784425,1748869869709,-151.0,0.0002041,2]
[363784426,1748869869719,-151.0,0.0002041,2]
[363784427,1748869869729,-151.0,0.0002041,2]
[363784428,1748869869739,-151.0,0.0002041,2]
[363784429,1748869869749,-151.299174,0.0002041,2]
[363784430,1748869869758,-299.50673,0.0002041,2]
[363784431,1748869869768,-158.509997,0.0002041,2]
[363784432,1748869869778,-151.0,0.0002041,2]
[363784433,1748869869787,-151.0,0.0002041,2]
[363784434,1748869869797,-151.0,0.0002041,2]
[363784435,1748869869806,-151.0,0.0002041,2]
[363784436,1748869869816,-179.92536,0.0002041,2]
[363784437,1748869869825,-179.92536,0.0002041,2]
[363784438,1748869869835,-151.121135,0.0002041,2]
[363784439,1748869869845,-151.0,0.0002041,2]
[363784440,1748869869854,-151.0,0.0002041,2]
[363784441,1748869869864,-151.0,0.0002041,2]
[363784442,1748869869873,-151.0,0.0002041,2]
[363784443,1748869869884,-227.187382,0.0002041,2]
[363784444,1748869869893,-151.0,0.0002041,2]
[363784445,1748869869903,-151.0,0.0002041,2]
[363784446,1748869869913,-589.346771,0.0002041,2]
[363784447,1748869869923,-589.346771,0.0002041,2]
[363784448,1748869869933,-151.0,0.0002041,2]
[363784449,1748869869944,-151.0,0.0002041,2]
[363784450,1748869869954,-151.0,0.0002041,2]
[363784451,1748869869965,-307.911294,0.0002041,2]
[363784452,1748869869975,-307.911294,0.0002041,2]
[363784453,1748869869985,-151.0,0.0002041,2]
[363784454,1748869869995,-151.0,0.0002041,2]
[363784455,1748869870005,-151.0,0.0002041,2]
[363784456,1748869870015,-151.0,0.0002041,2]
[363784457,1748869870024,-2451.556711,0.0002041,2]
[363784458,1748869870034,-151.0,0.0002041,2]
[363784459,1748869870044,-151.0,0.0002041,2]
[363784460,1748869870053,-151.0,0.0002041,2]
[363784461,1748869870062,-151.0,0.0002041,2]
[363784462,1748869870072,-168.505625,0.0002041,2]
[363784463,1748869870082,-168.505625,0.0002041,2]
[363784464,1748869870092,-182.168884,0.0002041,2]
[363784465,1748869870102,-182.168884,0.0002041,2]
[363784466,1748869870111,-444.47,0.0002041,2]
[363784467,1748869870121,-151.0,0.0002041,2]
[363784468,1748869870131,-151.0,0.0002041,2]
[363784469,1748869870140,-151.0,0.0002041,2]
[363784470,1748869870150,-151.0,0.0002041,2]
[363784471,1748869870159,-151.0,0.0002041,2]
[363784472,1748869870169,-151.0,0.0002041,2]
[363784473,1748869870178,-151.0,0.0002041,2]
[363784474,1748869870188,-151.0,0.0002041,2]
[363784475,1748869870198,-151.0,0.0002041,2]
[363784476,1748869870207,-151.0,0.0002041,2]
[363784477,1748869870217,-151.0,0.0002041,2]
[363784478,1748869870228,-151.0,0.0002041,2]
[363784479,1748869870238,-151.0,0.0002041,2]
[363784480,1748869870249,-151.0,0.0002041,2]
[363784481,1748869870260,-151.0,0.0002041,2]
[363784482,1748869870269,-151.0,0.0002041,2]
[363784483,1748869870279,-151.0,0.0002041,2]
[363784484,1748869870289,-402.410996,0.0002041,2]
[363784485,1748869870299,-151.0,0.0002041,2]
[363784486,1748869870308,-151.0,0.0002041,2]
[363784487,1748869870318,-151.0,0.0002041,2]
[363784488,1748869870329,-151.0,0.0002041,2]
[363784489,1748869870339,-151.0,0.0002041,2]
[363784490,1748869870348,-151.0,0.0002041,2]
[363784491,1748869870358,-151.0,0.0002041,2]
[363784492,1748869870368,-151.0,0.0002041,2]
[363784493,1748869870378,-151.0,0.0002041,2]
[363784494,1748869870388,-402.410996,0.0002041,2]
[363784495,1748869870398,-151.0,0.0002041,2]
[363784496,1748869870408,-151.0,0.0002041,2]
[363784497,1748869870419,-151.0,0.0002041,2]
[363784498,1748869870428,-151.0,0.0002041,2]
[363784499,1748869870438,-151.0,0.0002041,2]
[363784500,1748869870447,-159.937507,0.0002041,2]
[363784501,1748869870457,-151.0,0.0002041,2]
[363784502,1748869870467,-346.0632537,0.0002041,2]
[363784503,1748869870476,-420.0,0.0002041,2]
[363784504,1748869870486,-151.0,0.0002041,2]
[363784505,1748869870496,-151.0,0.0002041,2]
[363784506,1748869870505,-420.0,0.0002041,2]
[363784507,1748869870515,-420.0,0.0002041,2]
[363784508,1748869870525,-420.0,0.0002041,2]
[363784509,1748869870534,-420.0,0.0002041,2]
[363784510,1748869870543,-420.0,0.0002041,2]
[363784511,1748869870553,-420.0,0.0002041,2]
[363784512,1748869870563,-420.0,0.0002041,2]
[363784513,1748869870573,-420.0,0.0002041,2]
[363784514,1748869870582,-468.04,0.0002041,2]
[363784515,1748869870592,-420.0,0.0002041,2]
[363784516,1748869870602,-420.0,0.0002041,2]
[363784517,1748869870611,-420.0,0.0002041,2]
[363784518,1748869870621,-420.0,0.0002041,2]
[363784519,1748869870630,-420.0,0.0002041,2]
[363784520,1748869870640,-353.3649044,0.0002041,2]
[363784521,1748869870649,-420.0,0.0002041,2]
[363784522,1748869870659,-369.82571886,0.0002041,2]
[363784523,1748869870669,-533.51706122,0.0002041,2]
[363784524,1748869870679,-420.0,0.0002041,2]
[363784525,1748869870688,-1178.71,0.0002041,2]
[363784526,1748869870698,-1215.12,0.0002041,2]
[363784527,1748869870710,-656.62,0.0002041,2]
[363784528,1748869870719,-420.0,0.0002041,2]
[363784529,1748869870729,-420.0,0.0002041,2]
[363784530,1748869870739,-420.0,0.0002041,2]
[363784531,1748869870749,-851.99,0.0002041,2]
[363784532,1748869870758,-695.29,0.0002041,2]
[363784533,1748869870769,-1352.67,0.0002041,2]
[363784534,1748869870778,-604.89,0.0002041,2]
[363784535,1748869870788,-3257.23596346,0.0002041,2]
[363784536,1748869871805,-318.71381798,0.00019178,2]
[363784537,1748869871818,-101.28618202,0.00019178,2]
[363784538,1748869871828,-703.13288754,0.00019178,2]
[363784539,1748869871867,-935.33711246,0.00019178,2]
[363784540,1748869871876,-668.7,0.00019178,2]
[363784541,1748869871887,-420.0,0.00019315,2]
[363784542,1748869871896,-1638.47,0.00019315,2]
[363784543,1748869871905,-668.7,0.00019315,2]
[363784544,1748869871915,-420.0,0.00019452,2]
[363784545,1748869871925,-1638.47,0.00019452,2]
[363784546,1748869871936,-554.67,0.00019589,2]
[363784547,1748869871946,-1638.47,0.00019589,2]
[363784548,1748869871955,-804.0,0.0001966,2]
[363784549,1748869871965,-1638.47,0.00019726,2]
[363784550,1748869871975,-420.0,0.00019863,2]
[363784551,1748869871985,-420.0,0.0002,2]
[363784552,1748869871996,-420.0,0.00020136,2]
[363784553,1748869872006,-898.61,0.00020273,2]
[363784554,1748869872015,-420.0,0.00020273,2]
[363784555,1748869872025,-12038.56403654,0.0002041,2]
[363784556,1748869872036,-548.31886782,0.0002041,2]
[363784557,1748869872047,-420.0,0.0002041,2]
[363784558,1748869872058,-420.0,0.0002041,2]
[363784559,1748869872069,-479.62,0.0002041,2]
[363784560,1748869872079,-1073.37,0.0002041,2]
[363784561,1748869872088,-704.81,0.0002041,2]
[363784562,1748869872098,-1021.91,0.0002041,2]
[363784563,1748869872108,-1599.29,0.0002041,2]
[363784564,1748869872119,-462.74,0.0002041,2]
[363784565,1748869872129,-420.0,0.0002041,2]
[363784566,1748869872138,-505.66,0.0002041,2]
[363784567,1748869872149,-420.0,0.0002041,2]
[363784568,1748869872159,-3820.97070417,0.0002041,2]
[363784569,1748869872493,-343.68943434,0.00019178,2]
[363784571,1748870021212,250.0,0.00018954,2]
[363784572,1748870052966,1000.0,0.00018947,2]
[363784574,1748870106688,233.56,0.00013699,2]
[363784610,1748870108826,345.94,0.00018897,2]
[363784711,1748870390682,5880.52,0.00023,30]
[363784717,1748870555922,299.0,0.00018694,2]
[363784722,1748870651475,203.0,0.0001829,2]
[363784725,1748870730799,455.99,0.0001683,2]
[363784727,1748870756749,820.0,0.00019001,2]
[363784728,1748870756780,250.0,0.00018852,2]
[363784735,1748870872201,2000.0,0.00019,2]
[363784737,1748870881359,5000.0,0.00019,2]
[363784738,1748870893107,2000.0,0.00019,2]
[363784767,1748871031932,-577.83489551,0.00019052,2]
[363784768,1748871031995,-868.2805253,0.00019052,2]
[363784769,1748871032215,-274.1118893,0.00019052,2]
[363784770,1748871032228,-809.889,0.00019052,2]
[363785186,1748871038104,-661.04781825,0.00019052,2]
[363785187,1748871038116,-919.83587164,0.00019052,2]
[363785188,1748871038125,-400.0,0.00019052,2]
[363785189,1748871038134,-27.24019238,0.00019052,2]
[363785356,1748871039987,-362.75980762,0.00019052,2]
[363785358,1748871039997,-58.79078983,0.00019064,2]
[363785376,1748871040158,-341.20921017,0.00019064,2]
[363785378,1748871040170,-455.99,0.00019094,2]
[363785380,1748871040180,-260.0,0.00019165,2]
[363785382,1748871040189,-1200.0,0.00019165,2]
[363785384,1748871040198,-300.0,0.00019165,2]
[363785386,1748871040207,-151.0,0.00019166,2]
[363785388,1748871040217,-500.0,0.00019166,2]
[363785390,1748871040232,-594.35944764,0.00019166,2]
[363785392,1748871040241,-207.4,0.00019166,2]
[363785394,1748871040251,-1559.149076,0.00019178,2]
[363785396,1748871040260,-155.609573,0.00019178,2]
[363785398,1748871040270,-1454.819087,0.00019178,2]
[363785400,1748871040279,-667.760587,0.00019178,2]
[363785402,1748871040289,-198.331608,0.00019178,2]
[363785404,1748871040298,-420.0,0.00019178,2]
[363785406,1748871040308,-420.0,0.00019178,2]
[363785408,1748871040318,-550.72688201,0.00019178,2]
[363785410,1748871040327,-420.0,0.00019178,2]
[363785412,1748871040336,-420.0,0.00019178,2]
[363785414,1748871040345,-420.0,0.00019178,2]
[363785416,1748871040355,-420.0,0.00019178,2]
[363785418,1748871040365,-420.0,0.00019178,2]
[363785420,1748871040374,-249.76344531,0.00019178,2]
[363785422,1748871040384,-215.49118835,0.00019178,2]
[363785424,1748871040394,-178.946869,0.00019178,2]
[363785426,1748871040405,-420.0,0.00019178,2]
[363785428,1748871040414,-420.0,0.00019178,2]
[363785430,1748871040424,-713.464001,0.00019178,2]
[363785432,1748871040434,-420.0,0.00019178,2]
[363785434,1748871040444,-506.51,0.00019178,2]
[363785436,1748871040453,-420.0,0.00019178,2]
[363785438,1748871040463,-420.0,0.00019178,2]
[363785440,1748871040473,-420.0,0.00019178,2]
[363785442,1748871040483,-420.0,0.00019178,2]
[363785444,1748871040493,-420.0,0.00019178,2]
[363785446,1748871040502,-420.0,0.00019178,2]
[363785448,1748871040512,-420.0,0.00019178,2]
[363785452,1748871040522,-420.0,0.00019178,2]
[363785454,1748871040532,-420.0,0.00019178,2]
[363785457,1748871040541,-420.0,0.00019178,2]
[363785460,1748871040550,-420.0,0.00019178,2]
[363785463,1748871040559,-155.609569,0.00019178,2]
[363785466,1748871040569,-261.57448759,0.00019178,2]
[363785468,1748871040578,-420.0,0.00019178,2]
[363785471,1748871040587,-420.0,0.00019178,2]
[363785473,1748871040597,-420.0,0.00019178,2]
[363785475,1748871040606,-420.0,0.00019178,2]
[363785477,1748871040616,-420.0,0.00019178,2]
[363785479,1748871040626,-420.0,0.00019178,2]
[363785481,1748871040640,-420.0,0.00019178,2]
[363785483,1748871040649,-420.0,0.00019178,2]
[363785485,1748871040659,-151.877351,0.00019178,2]
[363785487,1748871040670,-566.0,0.00019178,2]
[363785489,1748871040681,-420.0,0.00019178,2]
[363785491,1748871040690,-420.0,0.00019178,2]
[363785493,1748871040700,-420.0,0.00019178,2]
[363785495,1748871040710,-521.47,0.00019178,2]
[363785497,1748871040721,-538.48,0.00019178,2]
[363785499,1748871040733,-420.0,0.00019178,2]
[363785501,1748871040743,-715.95,0.00019178,2]
[363785503,1748871040752,-420.0,0.00019178,2]
[363785505,1748871040762,-512.2,0.00019178,2]
[363785507,1748871040771,-420.0,0.00019178,2]
[363785509,1748871040781,-192.49532648,0.00019178,2]
[363785511,1748871040791,-420.0,0.00019178,2]
[363785513,1748871040801,-422.23,0.00019178,2]
[363785515,1748871040810,-420.0,0.00019178,2]
[363785517,1748871040820,-723.85,0.00019178,2]
[363785519,1748871040830,-900.48,0.00019178,2]
[363785521,1748871040839,-2332.34,0.00019178,2]
[363785523,1748871040848,-458.14,0.00019178,2]
[363785525,1748871040857,-420.0,0.00019178,2]
[363785527,1748871040867,-420.0,0.00019178,2]
[363785529,1748871040877,-313.96971276,0.00019178,2]
[363785531,1748871040887,-420.0,0.00019178,2]
[363785533,1748871040896,-173.0500931,0.00019178,2]
[363785535,1748871040905,-1219.96,0.00019178,2]
[363785537,1748871040915,-644.02,0.00019178,2]
[363785539,1748871040924,-420.0,0.00019178,2]
[363785541,1748871040934,-519.66,0.00019178,2]
[363785543,1748871040943,-420.0,0.00019178,2]
[363785545,1748871040953,-420.0,0.00019178,2]
[363785547,1748871040963,-420.0,0.00019178,2]
[363785549,1748871040972,-420.0,0.00019178,2]
[363785551,1748871040983,-432.64,0.00019178,2]
[363785553,1748871040993,-420.0,0.00019178,2]
[363785555,1748871041003,-420.0,0.00019178,2]
[363785557,1748871041013,-420.0,0.00019178,2]
[363785559,1748871041022,-489.24,0.00019178,2]
[363785561,1748871041032,-420.0,0.00019178,2]
[363785563,1748871041041,-420.0,0.00019178,2]
[363785565,1748871041051,-724.17,0.00019178,2]
[363785567,1748871041062,-1212.12,0.00019178,2]
[363785569,1748871041071,-512.28,0.00019178,2]
[363785571,1748871041081,-420.0,0.00019178,2]
[363785573,1748871041091,-544.66,0.00019178,2]
[363785575,1748871041101,-474.29883731,0.00019178,2]
[363785577,1748871041111,-420.0,0.00019178,2]
[363785579,1748871041121,-420.0,0.00019178,2]
[363785581,1748871041131,-420.0,0.00019178,2]
[363785583,1748871041140,-420.0,0.00019178,2]
[363785585,1748871041150,-420.0,0.00019178,2]
[363785587,1748871041160,-1602.74,0.00019178,2]
[363785589,1748871041170,-420.0,0.00019178,2]
[363785591,1748871041181,-420.0,0.00019178,2]
[363785593,1748871041190,-420.0,0.00019178,2]
[363785595,1748871041200,-420.0,0.00019178,2]
[363785597,1748871041210,-444.27814091,0.00019178,2]
[363785599,1748871041219,-420.0,0.00019178,2]
[363785601,1748871041231,-438.99830831,0.00019178,2]
[363785603,1748871041241,-420.0,0.00019178,2]
[363785605,1748871041250,-420.0,0.00019178,2]
[363785607,1748871041260,-463.22046153,0.00019178,2]
[363785609,1748871041271,-1619.58,0.00019178,2]
[363785611,1748871041280,-420.0,0.00019178,2]
[363785613,1748871041290,-2435.97,0.00019178,2]
[363785616,1748871041300,-368.8391928,0.00019178,2]
[363785618,1748871041310,-420.0,0.00019178,2]
[363785619,1748871041320,-420.0,0.00019178,2]
[363785621,1748871041329,-420.0,0.00019178,2]
[363785623,1748871041338,-420.0,0.00019178,2]
[363785625,1748871041348,-911.97,0.00019178,2]
[363785627,1748871041358,-420.0,0.00019178,2]
[363785629,1748871041368,-846.68,0.00019178,2]
[363785631,1748871041377,-420.18,0.00019178,2]
[363785633,1748871041387,-420.0,0.00019178,2]
[363785635,1748871041396,-1213.53,0.00019178,2]
[363785637,1748871041406,-913.98,0.00019178,2]
[363785639,1748871041416,-259.07776712,0.00019178,2]
[363785641,1748871041426,-420.0,0.00019178,2]
[363785643,1748871041436,-420.0,0.00019178,2]
[363785645,1748871041446,-420.0,0.00019178,2]
[363785647,1748871041456,-420.0,0.00019178,2]
[363785649,1748871041465,-420.0,0.00019178,2]
[363785651,1748871041475,-420.0,0.00019178,2]
[363785653,1748871041485,-963.21,0.00019178,2]
[363785655,1748871041494,-420.0,0.00019178,2]
[363785657,1748871041503,-420.0,0.00019178,2]
[363785659,1748871041513,-420.0,0.00019178,2]
[363785661,1748871041523,-420.0,0.00019178,2]
[363785663,1748871041533,-420.0,0.00019178,2]
[363785665,1748871041542,-420.0,0.00019178,2]
[363785666,1748871041551,-420.0,0.00019178,2]
[363785669,1748871041561,-2129.45,0.00019178,2]
[363785670,1748871041571,-420.0,0.00019178,2]
[363785672,1748871041581,-420.0,0.00019178,2]
[363785674,1748871041591,-580.43,0.00019178,2]
[363785676,1748871041600,-420.0,0.00019178,2]
[363785678,1748871041610,-875.71,0.00019178,2]
[363785680,1748871041620,-6209.68,0.00019178,2]
[363785682,1748871041631,-420.0,0.00019178,2]
[363785684,1748871041642,-455.49,0.00019178,2]
[363785686,1748871041651,-420.0,0.00019178,2]
[363785688,1748871041662,-420.0,0.00019178,2]
[363785690,1748871041672,-420.0,0.00019178,2]
[363785692,1748871041681,-420.0,0.00019178,2]
[363785694,1748871041691,-420.0,0.00019178,2]
[363785696,1748871041701,-420.0,0.00019178,2]
[363785698,1748871041714,-481.16,0.00019178,2]
[363785700,1748871041726,-420.0,0.00019178,2]
[363785702,1748871041735,-420.0,0.00019178,2]
[363785704,1748871041744,-420.0,0.00019178,2]
[363785706,1748871041754,-420.0,0.00019178,2]
[363785708,1748871041764,-648.26,0.00019178,2]
[363785710,1748871041773,-420.0,0.00019178,2]
[363785712,1748871041783,-1282.71,0.00019178,2]
[363785714,1748871041792,-420.0,0.00019178,2]
[363785716,1748871041802,-420.0,0.00019178,2]
[363785718,1748871041811,-424.08,0.00019178,2]
[363785720,1748871041821,-420.0,0.00019178,2]
[363785722,1748871041831,-420.0,0.00019178,2]
[363785724,1748871041841,-420.0,0.00019178,2]
[363785726,1748871041850,-420.0,0.00019178,2]
[363785728,1748871041860,-420.0,0.00019178,2]
[363785730,1748871041869,-518.15,0.00019178,2]